Workbook

Sheet patarimai
A1: ŠABLONO PATARIMAI
A2: Ar yra paprastas būdas pereiti iš išlaidų tendencijų suvestinės lapo į mėnesio išlaidų informaciją (ir atvirkščiai)?
A3: Norėdami greitai pereiti prie konkretaus mėnesio išlaidų, spustelėkite susijusį naršymo saitą virš diagramos, pvz., Sau naršymo saitą langelyje B2. Tada, norėdami grįžti į išlaidų tendencijų darbalapį, spustelėkite naršymo saitą Suvestinė langelyje D1.
A4: Norėdami grįžti į šį patarimų darbalapį, suvestinės darbalapyje pasirinkite N2. Jei norite matyti visų mėnesių darbalapius, pasirinkite E1.
A5: Kaip įtraukti naują išlaidų tipą į išlaidų suvestinę arba naujas mėnesio išlaidas?
A6: Po diagrama pateikta išlaidų suvestinė ir kiekvieno mėnesio išlaidų informacija yra „Excel“ lentelės. Norėdami įtraukti naujų eilučių į bet kurią „Excel“ lentelę, atlikite vieną iš toliau nurodytų veiksmų.
A7: =ROW(A1)&". Jei lentelėje nėra sumos eilutės, pradėkite vesti po lentele ir ji bus automatiškai išplėsta paspaudus Enter arba Tab klavišą." -> 1. Jei lentelėje nėra sumos eilutės, pradėkite vesti po lentele ir ji bus automatiškai išplėsta paspaudus Enter arba Tab klavišą.
A8: =ROW(A2)&". Perkelkite langelio žymiklį į paskutinį langelį virš sumos eilutės, pvz., paskutinių išlaidų sumos, ir paspauskite klavišą Tab." -> 2. Perkelkite langelio žymiklį į paskutinį langelį virš sumos eilutės, pvz., paskutinių išlaidų sumos, ir paspauskite klavišą Tab.
A9: =ROW(A3)&". Dešiniuoju pelės mygtuku spustelėkite lentelę ir iššokantįjį meniu nukreipkite žymiklį į Įterpti ir spustelėkite Lentelės eilutės viršuje arba Lentelės eilutės apačioje." -> 3. Dešiniuoju pelės mygtuku spustelėkite lentelę ir iššokantįjį meniu nukreipkite žymiklį į Įterpti ir spustelėkite Lentelės eilutės viršuje arba Lentelės eilutės apačioje.
A10: =ROW(A4)&". Apatiniame dešiniajame lentelės kampe perkelkite pelės žymiklį ant lentelės dydžio keitimo rankenėlės ir vilkite norėdami padidinti galimų lentelės eilučių skaičių." -> 4. Apatiniame dešiniajame lentelės kampe perkelkite pelės žymiklį ant lentelės dydžio keitimo rankenėlės ir vilkite norėdami padidinti galimų lentelės eilučių skaičių.
A11: Įveskite išlaidas suvestinės darbalapyje esančios lentelės IšlaidųSuvestinė stulpelyje Išlaidos.
A12: Įtraukite kiekvieno išlaidų tipo išlaidų sumą į mėnesio, kurį patirtos išlaidos, darbalapį.
A13: Pavyzdžiui: „Išlaidos 1“ nurodomos nuo sausio iki birželio ir iki gruodžio.
A14: =ROW(A1)&". Išlaidos 1 yra įvedamos suvestinės darbalapyje dalyje Išlaidos, lentelėje IšlaidųSuvestinė (kaip išlaidų tipo pavadinimas)." -> 1. Išlaidos 1 yra įvedamos suvestinės darbalapyje dalyje Išlaidos, lentelėje IšlaidųSuvestinė (kaip išlaidų tipo pavadinimas).
A15: =ROW(A2)&". Kiekvieno mėnesio išlaidų sumą įveskite atitinkamo mėnesio darbalapyje." -> 2. Kiekvieno mėnesio išlaidų sumą įveskite atitinkamo mėnesio darbalapyje.
A16: =ROW(A3)&". Išlaidų tipas iš darbalapio IšlaidųSuvestinė sukuria kategorijų sąrašą kiekvieno mėnesio darbalapio stulpelyje Kategorija." -> 3. Išlaidų tipas iš darbalapio IšlaidųSuvestinė sukuria kategorijų sąrašą kiekvieno mėnesio darbalapio stulpelyje Kategorija.
A17: =ROW(A4)&". Naudokite kategorijų sąrašą stulpelyje Kategorija, kad pasirinktumėte atitinkamą įvestos išlaidų sumos išlaidų tipą." -> 4. Naudokite kategorijų sąrašą stulpelyje Kategorija, kad pasirinktumėte atitinkamą įvestos išlaidų sumos išlaidų tipą.
A18: =ROW(A5)&". Norėdami įtraukti bet kurio mėnesio naujas išlaidas, į suvestinės darbalapio lentelę IšlaidųSuvestinė įtraukite naują eilutę, tada įveskite atitinkamą išlaidų informaciją mėnesio darbalapyje, kuriam jos taikomos." -> 5. Norėdami įtraukti bet kurio mėnesio naujas išlaidas, į suvestinės darbalapio lentelę IšlaidųSuvestinė įtraukite naują eilutę, tada įveskite atitinkamą išlaidų informaciją mėnesio darbalapyje, kuriam jos taikomos.

Sheet suvestinė
A1: IŠLAIDŲ TENDENCIJOS
B2: Sau | C2: Vas | D2: Kov | E2: Bal | F2: Geg | G2: Bir | H2: Lie | I2: Rgp | J2: Rgs | K2: Spl | L2: Lap | M2: Grd | N2: Patarimai
A4: Išlaidos | B4: Sau | C4: Vas | D4: Kov | E4: Bal | F4: Geg | G4: Bir | H4: Lie | I4: Rgp | J4: Rgs | K4: Spl | L4: Lap | M4: Grd | N4: Suma | O4: Tendencija
A5: 1 išlaidos | B5: =SUMIFS(IšlSau[Suma], IšlSau[Kategorija], IšlaidųSuvestinė[[#This Row],[Išlaidos]]) -> 33.00 | C5: =SUMIFS(IšlVas[Suma], IšlVas[Kategorija], IšlaidųSuvestinė[[#This Row],[Išlaidos]]) -> 375.00 | D5: =SUMIFS(IšlKov[Suma], IšlKov[Kategorija], IšlaidųSuvestinė[[#This Row],[Išlaidos]]) -> 33.00 | E5: =SUMIFS(IšlBal[Suma], IšlBal[Kategorija], IšlaidųSuvestinė[[#This Row],[Išlaidos]]) -> 45.00 | F5: =SUMIFS(IšlGeg[Suma], IšlGeg[Kategorija], IšlaidųSuvestinė[[#This Row],[Išlaidos]]) -> 375.00 | G5: =SUMIFS(IšlBir[Suma], IšlBir[Kategorija], IšlaidųSuvestinė[[#This Row],[Išlaidos]]) -> 201.00 | H5: =SUMIFS(IšlLie[Suma], IšlLie[Kategorija], IšlaidųSuvestinė[[#This Row],[Išlaidos]]) -> 0.00 | I5: =SUMIFS(IšlRgp[Suma], IšlRgp[Kategorija], IšlaidųSuvestinė[[#This Row],[Išlaidos]]) -> 0.00 | J5: =SUMIFS(IšlRgs[Suma], IšlRgs[Kategorija], IšlaidųSuvestinė[[#This Row],[Išlaidos]]) -> 0.00 | K5: =SUMIFS(IšlSpl[Suma], IšlSpl[Kategorija], IšlaidųSuvestinė[[#This Row],[Išlaidos]]) -> 0.00 | L5: =SUMIFS(IšlRgs[Suma], IšlRgs[Kategorija], IšlaidųSuvestinė[[#This Row],[Išlaidos]]) -> 0.00 | M5: =SUMIFS(IšlGrd[Suma], IšlGrd[Kategorija], IšlaidųSuvestinė[[#This Row],[Išlaidos]]) -> 201.00 | N5: =SUM(IšlaidųSuvestinė[[#This Row],[Sau]:[Grd]]) -> 1,263.00
A6: 2 išlaidos | B6: =SUMIFS(IšlSau[Suma], IšlSau[Kategorija], IšlaidųSuvestinė[[#This Row],[Išlaidos]]) -> 238.00 | C6: =SUMIFS(IšlVas[Suma], IšlVas[Kategorija], IšlaidųSuvestinė[[#This Row],[Išlaidos]]) -> 238.00 | D6: =SUMIFS(IšlKov[Suma], IšlKov[Kategorija], IšlaidųSuvestinė[[#This Row],[Išlaidos]]) -> 238.00 | E6: =SUMIFS(IšlBal[Suma], IšlBal[Kategorija], IšlaidųSuvestinė[[#This Row],[Išlaidos]]) -> 123.00 | F6: =SUMIFS(IšlGeg[Suma], IšlGeg[Kategorija], IšlaidųSuvestinė[[#This Row],[Išlaidos]]) -> 111.00 | G6: =SUMIFS(IšlBir[Suma], IšlBir[Kategorija], IšlaidųSuvestinė[[#This Row],[Išlaidos]]) -> 98.00 | H6: =SUMIFS(IšlLie[Suma], IšlLie[Kategorija], IšlaidųSuvestinė[[#This Row],[Išlaidos]]) -> 0.00 | I6: =SUMIFS(IšlRgp[Suma], IšlRgp[Kategorija], IšlaidųSuvestinė[[#This Row],[Išlaidos]]) -> 0.00 | J6: =SUMIFS(IšlRgs[Suma], IšlRgs[Kategorija], IšlaidųSuvestinė[[#This Row],[Išlaidos]]) -> 0.00 | K6: =SUMIFS(IšlSpl[Suma], IšlSpl[Kategorija], IšlaidųSuvestinė[[#This Row],[Išlaidos]]) -> 0.00 | L6: =SUMIFS(IšlRgs[Suma], IšlRgs[Kategorija], IšlaidųSuvestinė[[#This Row],[Išlaidos]]) -> 0.00 | M6: =SUMIFS(IšlGrd[Suma], IšlGrd[Kategorija], IšlaidųSuvestinė[[#This Row],[Išlaidos]]) -> 440.00 | N6: =SUM(IšlaidųSuvestinė[[#This Row],[Sau]:[Grd]]) -> 1,486.00
A7: 3 išlaidos | B7: =SUMIFS(IšlSau[Suma], IšlSau[Kategorija], IšlaidųSuvestinė[[#This Row],[Išlaidos]]) -> 110.00 | C7: =SUMIFS(IšlVas[Suma], IšlVas[Kategorija], IšlaidųSuvestinė[[#This Row],[Išlaidos]]) -> 110.00 | D7: =SUMIFS(IšlKov[Suma], IšlKov[Kategorija], IšlaidųSuvestinė[[#This Row],[Išlaidos]]) -> 165.00 | E7: =SUMIFS(IšlBal[Suma], IšlBal[Kategorija], IšlaidųSuvestinė[[#This Row],[Išlaidos]]) -> 125.00 | F7: =SUMIFS(IšlGeg[Suma], IšlGeg[Kategorija], IšlaidųSuvestinė[[#This Row],[Išlaidos]]) -> 333.00 | G7: =SUMIFS(IšlBir[Suma], IšlBir[Kategorija], IšlaidųSuvestinė[[#This Row],[Išlaidos]]) -> 122.00 | H7: =SUMIFS(IšlLie[Suma], IšlLie[Kategorija], IšlaidųSuvestinė[[#This Row],[Išlaidos]]) -> 0.00 | I7: =SUMIFS(IšlRgp[Suma], IšlRgp[Kategorija], IšlaidųSuvestinė[[#This Row],[Išlaidos]]) -> 0.00 | J7: =SUMIFS(IšlRgs[Suma], IšlRgs[Kategorija], IšlaidųSuvestinė[[#This Row],[Išlaidos]]) -> 0.00 | K7: =SUMIFS(IšlSpl[Suma], IšlSpl[Kategorija], IšlaidųSuvestinė[[#This Row],[Išlaidos]]) -> 0.00 | L7: =SUMIFS(IšlRgs[Suma], IšlRgs[Kategorija], IšlaidųSuvestinė[[#This Row],[Išlaidos]]) -> 0.00 | M7: =SUMIFS(IšlGrd[Suma], IšlGrd[Kategorija], IšlaidųSuvestinė[[#This Row],[Išlaidos]]) -> 122.00 | N7: =SUM(IšlaidųSuvestinė[[#This Row],[Sau]:[Grd]]) -> 1,087.00
A8: 4 išlaidos | B8: =SUMIFS(IšlSau[Suma], IšlSau[Kategorija], IšlaidųSuvestinė[[#This Row],[Išlaidos]]) -> 426.00 | C8: =SUMIFS(IšlVas[Suma], IšlVas[Kategorija], IšlaidųSuvestinė[[#This Row],[Išlaidos]]) -> 84.00 | D8: =SUMIFS(IšlKov[Suma], IšlKov[Kategorija], IšlaidųSuvestinė[[#This Row],[Išlaidos]]) -> 84.00 | E8: =SUMIFS(IšlBal[Suma], IšlBal[Kategorija], IšlaidųSuvestinė[[#This Row],[Išlaidos]]) -> 426.00 | F8: =SUMIFS(IšlGeg[Suma], IšlGeg[Kategorija], IšlaidųSuvestinė[[#This Row],[Išlaidos]]) -> 125.00 | G8: =SUMIFS(IšlBir[Suma], IšlBir[Kategorija], IšlaidųSuvestinė[[#This Row],[Išlaidos]]) -> 187.00 | H8: =SUMIFS(IšlLie[Suma], IšlLie[Kategorija], IšlaidųSuvestinė[[#This Row],[Išlaidos]]) -> 0.00 | I8: =SUMIFS(IšlRgp[Suma], IšlRgp[Kategorija], IšlaidųSuvestinė[[#This Row],[Išlaidos]]) -> 0.00 | J8: =SUMIFS(IšlRgs[Suma], IšlRgs[Kategorija], IšlaidųSuvestinė[[#This Row],[Išlaidos]]) -> 0.00 | K8: =SUMIFS(IšlSpl[Suma], IšlSpl[Kategorija], IšlaidųSuvestinė[[#This Row],[Išlaidos]]) -> 0.00 | L8: =SUMIFS(IšlRgs[Suma], IšlRgs[Kategorija], IšlaidųSuvestinė[[#This Row],[Išlaidos]]) -> 0.00 | M8: =SUMIFS(IšlGrd[Suma], IšlGrd[Kategorija], IšlaidųSuvestinė[[#This Row],[Išlaidos]]) -> 187.00 | N8: =SUM(IšlaidųSuvestinė[[#This Row],[Sau]:[Grd]]) -> 1,519.00
A9: 5 išlaidos | B9: =SUMIFS(IšlSau[Suma], IšlSau[Kategorija], IšlaidųSuvestinė[[#This Row],[Išlaidos]]) -> 54.00 | C9: =SUMIFS(IšlVas[Suma], IšlVas[Kategorija], IšlaidųSuvestinė[[#This Row],[Išlaidos]]) -> 54.00 | D9: =SUMIFS(IšlKov[Suma], IšlKov[Kategorija], IšlaidųSuvestinė[[#This Row],[Išlaidos]]) -> 54.00 | E9: =SUMIFS(IšlBal[Suma], IšlBal[Kategorija], IšlaidųSuvestinė[[#This Row],[Išlaidos]]) -> 98.00 | F9: =SUMIFS(IšlGeg[Suma], IšlGeg[Kategorija], IšlaidųSuvestinė[[#This Row],[Išlaidos]]) -> 33.00 | G9: =SUMIFS(IšlBir[Suma], IšlBir[Kategorija], IšlaidųSuvestinė[[#This Row],[Išlaidos]]) -> 441.00 | H9: =SUMIFS(IšlLie[Suma], IšlLie[Kategorija], IšlaidųSuvestinė[[#This Row],[Išlaidos]]) -> 0.00 | I9: =SUMIFS(IšlRgp[Suma], IšlRgp[Kategorija], IšlaidųSuvestinė[[#This Row],[Išlaidos]]) -> 0.00 | J9: =SUMIFS(IšlRgs[Suma], IšlRgs[Kategorija], IšlaidųSuvestinė[[#This Row],[Išlaidos]]) -> 0.00 | K9: =SUMIFS(IšlSpl[Suma], IšlSpl[Kategorija], IšlaidųSuvestinė[[#This Row],[Išlaidos]]) -> 0.00 | L9: =SUMIFS(IšlRgs[Suma], IšlRgs[Kategorija], IšlaidųSuvestinė[[#This Row],[Išlaidos]]) -> 0.00 | M9: =SUMIFS(IšlGrd[Suma], IšlGrd[Kategorija], IšlaidųSuvestinė[[#This Row],[Išlaidos]]) -> 99.00 | N9: =SUM(IšlaidųSuvestinė[[#This Row],[Sau]:[Grd]]) -> 833.00
A10: Suma | B10: =SUBTOTAL(109,IšlaidųSuvestinė[Sau]) -> 861.00 | C10: =SUBTOTAL(109,IšlaidųSuvestinė[Vas]) -> 861.00 | D10: =SUBTOTAL(109,IšlaidųSuvestinė[Kov]) -> 574.00 | E10: =SUBTOTAL(109,IšlaidųSuvestinė[Bal]) -> 817.00 | F10: =SUBTOTAL(109,IšlaidųSuvestinė[Geg]) -> 977.00 | G10: =SUBTOTAL(109,IšlaidųSuvestinė[Bir]) -> 1,049.00 | H10: =SUBTOTAL(109,IšlaidųSuvestinė[Lie]) -> 0.00 | I10: =SUBTOTAL(109,IšlaidųSuvestinė[Rgp]) -> 0.00 | J10: =SUBTOTAL(109,IšlaidųSuvestinė[Rgs]) -> 0.00 | K10: =SUBTOTAL(109,IšlaidųSuvestinė[Spl]) -> 0.00 | L10: =SUBTOTAL(109,IšlaidųSuvestinė[Lap]) -> 0.00 | M10: =SUBTOTAL(109,IšlaidųSuvestinė[Grd]) -> 1,049.00 | N10: =SUBTOTAL(109,IšlaidųSuvestinė[Suma]) -> 6,188.00

Sheet sau
A1: SAUSIO MĖNESIO IŠLAIDOS | D1: Suvestinė | E1: Patarimai
A2: Data | B2: PU Nr. | C2: Suma | D2: Kategorija | E2: Aprašas
A3: =DATE(YEAR(TODAY()),1,4) -> 2017-01-04 | B3: A-12345 | C3: 33.00 | D3: 1 išlaidos | E3: Atsargos
A4: =DATE(YEAR(TODAY()),1,5) -> 2017-01-05 | B4: A-12346 | C4: 238.00 | D4: 2 išlaidos
C5: 342.00 | D5: 4 išlaidos
C6: 110.00 | D6: 3 išlaidos
C7: 84.00 | D7: 4 išlaidos
C8: 54.00 | D8: 5 išlaidos
A9: Suma | C9: =SUBTOTAL(109,IšlSau[Suma]) -> 861.00

Sheet vas
A1: VASARIO MĖNESIO IŠLAIDOS | D1: Suvestinė | E1: Patarimai
A2: Data | B2: PU Nr. | C2: Suma | D2: Kategorija | E2: Aprašas
A3: =DATE(YEAR(TODAY()),2,3) -> 2017-02-03 | B3: A-12345 | C3: 33.00 | D3: 1 išlaidos | E3: Atsargos
A4: =DATE(YEAR(TODAY()),2,4) -> 2017-02-04 | B4: A-12346 | C4: 238.00 | D4: 2 išlaidos
C5: 342.00 | D5: 1 išlaidos
C6: 110.00 | D6: 3 išlaidos
C7: 84.00 | D7: 4 išlaidos
C8: 54.00 | D8: 5 išlaidos
A9: Suma | C9: =SUBTOTAL(109,IšlVas[Suma]) -> 861.00

Sheet kov
A1: KOVO MĖNESIO IŠLAIDOS | D1: Suvestinė | E1: Patarimai
A2: Data | B2: PU Nr. | C2: Suma | D2: Kategorija | E2: Aprašas
A3: =DATE(YEAR(TODAY()),3,5) -> 2017-03-05 | B3: A-12345 | C3: 33.00 | D3: 1 išlaidos | E3: Atsargos
A4: =DATE(YEAR(TODAY()),3,6) -> 2017-03-06 | B4: A-12346 | C4: 238.00 | D4: 2 išlaidos
C5: 55.00 | D5: 3 išlaidos
C6: 110.00 | D6: 3 išlaidos
C7: 84.00 | D7: 4 išlaidos
C8: 54.00 | D8: 5 išlaidos
A9: Suma | C9: =SUBTOTAL(109,IšlKov[Suma]) -> 574.00

Sheet bal
A1: BALANDŽIO MĖNESIO IŠLAIDOS | D1: Suvestinė | E1: Patarimai
A2: Data | B2: PU Nr. | C2: Suma | D2: Kategorija | E2: Aprašas
A3: =DATE(YEAR(TODAY()),4,4) -> 2017-04-04 | B3: A-12345 | C3: 45.00 | D3: 1 išlaidos | E3: Atsargos
A4: =DATE(YEAR(TODAY()),4,8) -> 2017-04-08 | B4: A-12346 | C4: 123.00 | D4: 2 išlaidos
C5: 342.00 | D5: 4 išlaidos
C6: 125.00 | D6: 3 išlaidos
C7: 84.00 | D7: 4 išlaidos
C8: 98.00 | D8: 5 išlaidos
A9: Suma | C9: =SUBTOTAL(109,IšlBal[Suma]) -> 817.00

Sheet geg
A1: GEGUŽĖS MĖNESIO IŠLAIDOS | D1: Suvestinė | E1: Patarimai
A2: Data | B2: PU Nr. | C2: Suma | D2: Kategorija | E2: Aprašas
A3: =DATE(YEAR(TODAY()),5,3) -> 2017-05-03 | B3: A-12345 | C3: 33.00 | D3: 1 išlaidos | E3: Atsargos
A4: =DATE(YEAR(TODAY()),5,8) -> 2017-05-08 | B4: A-12346 | C4: 111.00 | D4: 2 išlaidos
C5: 342.00 | D5: 1 išlaidos
C6: 333.00 | D6: 3 išlaidos
C7: 125.00 | D7: 4 išlaidos
C8: 33.00 | D8: 5 išlaidos
A9: Suma | C9: =SUBTOTAL(109,IšlGeg[Suma]) -> 977.00

Sheet bir
A1: BIRŽELIO MĖNESIO IŠLAIDOS | D1: Suvestinė | E1: Patarimai
A2: Data | B2: PU Nr. | C2: Suma | D2: Kategorija | E2: Aprašas
A3: =DATE(YEAR(TODAY()),6,7) -> 2017-06-07 | B3: A-12345 | C3: 201.00 | D3: 1 išlaidos | E3: Atsargos
A4: =DATE(YEAR(TODAY()),6,8) -> 2017-06-08 | B4: A-12346 | C4: 98.00 | D4: 2 išlaidos
C5: 342.00 | D5: 5 išlaidos
C6: 122.00 | D6: 3 išlaidos
C7: 187.00 | D7: 4 išlaidos
C8: 99.00 | D8: 5 išlaidos
A9: Suma | C9: =SUBTOTAL(109,IšlBir[Suma]) -> 1,049.00

Sheet lie
A1: LIEPOS MĖNESIO IŠLAIDOS | D1: Suvestinė | E1: Patarimai
A2: Data | B2: PU Nr. | C2: Suma | D2: Kategorija | E2: Aprašas
A3: =DATE(YEAR(TODAY()),7,9) -> 2017-07-09 | B3: A-12345 | D3: 1 išlaidos | E3: Atsargos
A4: =DATE(YEAR(TODAY()),7,14) -> 2017-07-14 | B4: A-12346 | D4: 2 išlaidos
D5: 2 išlaidos
D6: 3 išlaidos
D7: 4 išlaidos
D8: 5 išlaidos
A9: Suma | C9: =SUBTOTAL(109,IšlLie[Suma]) -> 0.00

Sheet rgp
A1: RUGPJŪČIO MĖNESIO IŠLAIDOS | D1: Suvestinė | E1: Patarimai
A2: Data | B2: PU Nr. | C2: Suma | D2: Kategorija | E2: Aprašas
A3: =DATE(YEAR(TODAY()),8,8) -> 2017-08-08 | B3: A-12345 | D3: 1 išlaidos | E3: Atsargos
A4: =DATE(YEAR(TODAY()),8,9) -> 2017-08-09 | B4: A-12346 | D4: 2 išlaidos
D5: 2 išlaidos
D6: 3 išlaidos
D7: 4 išlaidos
D8: 5 išlaidos
A9: Suma | C9: =SUBTOTAL(109,IšlRgp[Suma]) -> 0.00

Sheet rgs
A1: RUGSĖJO MĖNESIO IŠLAIDOS | D1: Suvestinė | E1: Patarimai
A2: Data | B2: PU Nr. | C2: Suma | D2: Kategorija | E2: Aprašas
A3: =DATE(YEAR(TODAY()),9,9) -> 2017-09-09 | B3: A-12345 | D3: 1 išlaidos | E3: Atsargos
A4: =DATE(YEAR(TODAY()),9,15) -> 2017-09-15 | B4: A-12346 | D4: 2 išlaidos
D5: 2 išlaidos
D6: 3 išlaidos
D7: 4 išlaidos
D8: 5 išlaidos
A9: Suma | C9: =SUBTOTAL(109,IšlRgs[Suma]) -> 0.00

Sheet spl
A1: SPALIO MĖNESIO IŠLAIDOS | D1: Suvestinė | E1: Patarimai
A2: Data | B2: PU Nr. | C2: Suma | D2: Kategorija | E2: Aprašas
A3: =DATE(YEAR(TODAY()),10,10) -> 2017-10-10 | B3: A-12345 | D3: 1 išlaidos | E3: Atsargos
A4: =DATE(YEAR(TODAY()),10,21) -> 2017-10-21 | B4: A-12346 | D4: 2 išlaidos
D5: 2 išlaidos
D6: 3 išlaidos
D7: 4 išlaidos
D8: 5 išlaidos
A9: Suma | C9: =SUBTOTAL(109,IšlSpl[Suma]) -> 0.00

Sheet lap
A1: LAPKRIČIO MĖNESIO IŠLAIDOS | D1: Suvestinė | E1: Patarimai
A2: Data | B2: PU Nr. | C2: Suma | D2: Kategorija | E2: Aprašas
A3: =DATE(YEAR(TODAY()),11,14) -> 2017-11-14 | B3: A-12345 | D3: 1 išlaidos | E3: Atsargos
A4: =DATE(YEAR(TODAY()),11,21) -> 2017-11-21 | B4: A-12346 | D4: 2 išlaidos
D5: 2 išlaidos
D6: 3 išlaidos
D7: 4 išlaidos
D8: 5 išlaidos
A9: Suma | C9: =SUBTOTAL(109,IšlLap[Suma]) -> 0.00

Sheet grd
A1: GRUODŽIO MĖNESIO IŠLAIDOS | D1: Suvestinė | E1: Patarimai
A2: Data | B2: PU Nr. | C2: Suma | D2: Kategorija | E2: Aprašas
A3: =DATE(YEAR(TODAY()),12,2) -> 2017-12-02 | B3: A-12345 | C3: 201.00 | D3: 1 išlaidos | E3: Atsargos
A4: =DATE(YEAR(TODAY()),12,24) -> 2017-12-24 | B4: A-12346 | C4: 98.00 | D4: 2 išlaidos
C5: 342.00 | D5: 2 išlaidos
C6: 122.00 | D6: 3 išlaidos
C7: 187.00 | D7: 4 išlaidos
C8: 99.00 | D8: 5 išlaidos
A9: Suma | C9: =SUBTOTAL(109,IšlGrd[Suma]) -> 1,049.00
